[Event "DFMMLV 2024"]
[Site "Braunfels"]
[Date "2024.05.30"]
[Round "1.22"]
[White "Graf, Ann-Jennifer"]
[Black "Gheng, Simona"]
[Result "0-1"]
[ECO "B23"]
[WhiteElo "1827"]
[BlackElo "1982"]
[Annotator "NA RC"]
[PlyCount "100"]
[EventDate "2024.05.30"]
[EventType "team-tourn"]
[EventCountry "GER"]
[SourceTitle "playchess.com"]
[Source "ChessBase"]
[SourceQuality "1"]
[TimeControl "40/5400+30:1800+30"]

1. e4 {[%emt 0:00:03]} c5 {[%emt 0:00:12]} 2. Nc3 {[%emt 0:00:09]} Nc6 {[%emt 0:01:00]} 3. Nge2 {[%emt 0:01:51]} d6 {[%emt 0:01:05]} 4. d3 {[%emt 0:00:59]} g6 {[%emt 0:00:47]} 5. Be3 {[%emt 0:06:52]} Nf6 {[%emt 0:01:51]} 6. h3 {[%emt 0:03:34]} Bg7 {[%emt 0:01:23]} 7. Qd2 {[%emt 0:05:42]} a6 {[%emt 0:01:59]} 8. f4 {[%emt 0:13:01]} b5 {[%emt 0:02:40]} 9. Rb1 {[%emt 0:06:39]} Bb7 {[%emt 0:01:42]} 10. f5 {[%emt 0:01:49]} b4 {[%emt 0:08:17]} 11. Nd5 {[%emt 0:05:31]} Ne5 {[%emt 0:02:57]} 12. Nxf6+ {[%emt 0:04:23]} Bxf6 {[%emt 0:00:24]} 13. Bg5 {[%emt 0:08:08]} Bxg5 {[%emt 0:04:04]} 14. Qxg5 {[%emt 0:00:06]} Qa5 {[%emt 0:00:17]} 15. Nc1 {[%emt 0:01:55]} gxf5 {[%emt 0:04:08]} 16. Qxf5 {[%emt 0:03:31]} b3+ {[%emt 0:00:51]} 17. c3 {[%emt 0:01:15]} bxa2 {[%emt 0:00:44]} 18. Ra1 {[%emt 0:00:15]} Qb6 {[%emt 0:00:31]} 19. Qf2 {[%emt 0:00:38]} a5 {[%emt 0:09:55]} 20. Nxa2 {[%emt 0:01:24]} Ba6 {[%emt 0:01:07]} 21. c4 {[%emt 0:04:01]} Rb8 {[%emt 0:01:18]} 22. Rb1 {[%emt 0:01:40]} Qb3 {[%emt 0:01:57]} 23. Nc1 {[%emt 0:00:09]} Qb4+ {[%emt 0:00:54]} 24. Qd2 {[%emt 0:00:15]} Kd7 {[%emt 0:01:54]} 25. Be2 {[%emt 0:03:40]} Rhg8 {[%emt 0:01:19]} 26. Qxb4 {[%emt 0:00:46]} Rxb4 {[%emt 0:00:31]} 27. O-O {[%emt 0:02:28]} Rgb8 {[%emt 0:04:43]} 28. Rf2 {[%emt 0:02:30]} f6 {[%emt 0:00:55]} 29. Bd1 {[%emt 0:02:45]} Bb7 {[%emt 0:04:37]} 30. Ra1 {[%emt 0:01:47]} Bc6 {[%emt 0:02:02]} 31. Rxa5 {[%emt 0:04:21]} Rxb2 {[%emt 0:01:54]} 32. Rxb2 {[%emt 0:02:22]} Rxb2 {[%emt 0:00:07]} 33. Ra7+ {[%emt 0:00:58]} Kd8 {[%emt 0:03:01]} 34. Ra1 {[%emt 0:00:29]} f5 {[%emt 0:03:48]} 35. Bf3 {[%emt 0:02:38]} fxe4 {[%emt 0:00:27]} 36. Bxe4 {[%emt 0:03:26]} Bxe4 {[%emt 0:00:07]} 37. dxe4 {[%emt 0:00:03]} Nxc4 {[%emt 0:00:14]} 38. Nd3 {[%emt 0:00:19]} Rd2 {[%emt 0:01:21]} 39. Nf4 {[%emt 0:00:28]} Ne3 {[%emt 0:02:51]} 40. Ra8+ {[%emt 0:01:15]} Kd7 {[%emt 0:00:25]} 41. Ra7+ {[%emt 0:30:14]} Ke8 {[%emt 0:30:59]} 42. Ra8+ {[%emt 0:00:15]} Kf7 {[%emt 0:00:12]} 43. Ra3 {[%emt 0:01:51]} e5 {[%emt 0:03:42]} 44. Rxe3 {[%emt 0:00:40]} exf4 {[%emt 0:00:05]} 45. Rf3 {[%emt 0:00:12]} Ke6 {[%emt 0:00:07]} 46. Rxf4 {[%emt 0:00:32]} c4 {[%emt 0:01:29]} 47. Rf3 {[%emt 0:02:11]} Ke5 {[%emt 0:00:14]} 48. Rc3 {[%emt 0:01:10]} Kd4 {[%emt 0:00:11]} 49. Rc1 {[%emt 0:00:33]} c3 {[%emt 0:00:36]} 50. Kf1 {[%emt 0:00:14]} c2 {[%emt 0:00:34]} 0-1

[Event "DFMMLV 2024"]
[Site "Braunfels"]
[Date "2024.05.30"]
[Round "1.25"]
[White "Pavlov, Liliane"]
[Black "Sickmann, Lisa"]
[Result "0-1"]
[ECO "B28"]
[WhiteElo "1846"]
[BlackElo "1980"]
[Annotator "NA RC"]
[PlyCount "56"]
[EventDate "2024.05.30"]
[EventType "team-tourn"]
[EventCountry "GER"]
[SourceTitle "playchess.com"]
[Source "ChessBase"]
[SourceQuality "1"]
[TimeControl "40/5400+30:1800+30"]

1. e4 {[%emt 0:00:03]} c5 {[%emt 0:00:06]} 2. Nc3 {[%emt 0:00:30]} a6 {[%emt 0:00:32]} 3. Nf3 {[%emt 0:01:02]} b5 {[%emt 0:00:35]} 4. d3 {[%emt 0:02:01]} e6 {[%emt 0:01:51]} 5. Bf4 {[%emt 0:03:19]} Bb7 {[%emt 0:04:16]} 6. Ne2 {[%emt 0:03:46]} Be7 {[%emt 0:05:04]} 7. Ng3 {[%emt 0:02:27]} Nf6 {[%emt 0:03:40]} 8. Be2 {[%emt 0:07:23]} d6 {[%emt 0:05:44]} 9. e5 {[%emt 0:02:50]} dxe5 {[%emt 0:04:54]} 10. Nxe5 {[%emt 0:08:02]} Qd4 {[%emt 0:09:38]} 11. Qc1 {[%emt 0:04:53]} g5 {[%emt 0:09:20]} 12. Nxf7 {[%emt 0:00:58]} gxf4 {[%emt 0:07:40]} 13. Nxh8 {[%emt 0:01:31]} fxg3 {[%emt 0:00:43]} 14. hxg3 {[%emt 0:01:04]} Nbd7 {[%emt 0:11:34]} 15. c3 {[%emt 0:01:35]} Qe5 {[%emt 0:01:09]} 16. f4 {[%emt 0:04:38]} Qf5 {[%emt 0:09:12]} 17. Rh2 {[%emt 0:52:58]} Ng4 {[%emt 0:23:02]} 18. Bxg4 {[%emt 0:00:00]} Qxg4 {[%emt 0:00:00]} 19. Kf2 {[%emt 0:00:00]} Qg7 {[%emt 0:00:00]} 20. Qh1 {[%emt 0:00:00]} Nf6 {[%emt 0:00:00]} 21. Rh3 {[%emt 0:00:00]} Qxh8 {[%emt 0:00:00]} 22. Re1 {[%emt 0:00:00]} Qg8 {[%emt 0:00:00]} 23. Ke2 {[%emt 0:00:00]} O-O-O {[%emt 0:00:00]} 24. Kd2 {[%emt 0:00:00]} Qg6 {[%emt 0:00:00]} 25. Kc1 {[%emt 0:00:00]} Qxd3 {[%emt 0:00:00]} 26. g4 {[%emt 0:00:00]} Qd2+ {[%emt 0:00:00]} 27. Kb1 {[%emt 0:00:00]} Be4+ {[%emt 0:00:00]} 28. Ka1 {[%emt 0:00:00]} Bxg2 {[%emt 0:00:00]} 0-1

[Event "DFMMLV 2024"]
[Site "Braunfels"]
[Date "2024.05.30"]
[Round "1.26"]
[White "Koehler, Inken"]
[Black "Albayrak, Berrak"]
[Result "*"]
[ECO "E04"]
[WhiteElo "2014"]
[BlackElo "1850"]
[Annotator "NA RC"]
[PlyCount "20"]
[EventDate "2024.05.30"]
[EventType "team-tourn"]
[EventCountry "GER"]
[SourceTitle "playchess.com"]
[Source "ChessBase"]
[SourceQuality "1"]
[TimeControl "40/5400+30:1800+30"]

1. d4 {[%emt 0:00:09]} d5 {[%emt 0:00:07]} 2. c4 {[%emt 0:00:07]} e6 {[%emt 0:00:03]} 3. Nf3 {[%emt 0:00:10]} Nf6 {[%emt 0:00:04]} 4. g3 {[%emt 0:00:09]} Bb4+ {[%emt 0:00:15]} 5. Bd2 {[%emt 0:00:10]} a5 {[%emt 0:00:05]} 6. Bg2 {[%emt 0:00:28]} dxc4 {[%emt 0:00:27]} 7. Bxb4 {[%emt 0:07:12]} axb4 {[%emt 0:01:30]} 8. Ne5 {[%emt 0:00:13]} O-O {[%emt 0:02:39]} 9. O-O {[%emt 0:01:36]} Ra7 {[%emt 0:04:51]} 10. Nxc4 {[%emt 0:03:51]} b6 {[%emt 0:01:20]} *

[Event "DFMMLV 2024"]
[Site "Braunfels"]
[Date "2024.05.30"]
[Round "1.27"]
[White "Bauer, Laura Sophie"]
[Black "Braeutigam, Katerina"]
[Result "*"]
[ECO "E95"]
[WhiteElo "1874"]
[BlackElo "1988"]
[Annotator "NA RC"]
[PlyCount "20"]
[EventDate "2024.05.30"]
[EventType "team-tourn"]
[EventCountry "GER"]
[SourceTitle "playchess.com"]
[Source "ChessBase"]
[SourceQuality "1"]
[TimeControl "40/5400+30:1800+30"]

1. d4 {[%emt 0:00:03]} Nf6 {[%emt 0:00:04]} 2. c4 {[%emt 0:00:08]} g6 {[%emt 0:00:07]} 3. Nc3 {[%emt 0:00:11]} Bg7 {[%emt 0:00:08]} 4. e4 {[%emt 0:00:12]} d6 {[%emt 0:00:21]} 5. Be2 {[%emt 0:00:17]} O-O {[%emt 0:00:24]} 6. Nf3 {[%emt 0:00:36]} e5 {[%emt 0:02:03]} 7. O-O {[%emt 0:11:30]} Nbd7 {[%emt 0:01:05]} 8. Re1 {[%emt 0:02:42]} Re8 {[%emt 0:02:40]} 9. d5 {[%emt 0:03:23]} Nc5 {[%emt 0:03:59]} 10. Qc2 {[%emt 0:01:04]} a5 {[%emt 0:01:13]} *

[Event "DFMMLV 2024"]
[Site "Braunfels"]
[Date "2024.05.30"]
[Round "1.29"]
[White "Reich, Elisabeth"]
[Black "Mundt, Alexandra"]
[Result "0-1"]
[ECO "B40"]
[WhiteElo "1797"]
[BlackElo "1874"]
[Annotator "NA COMBH RC"]
[PlyCount "55"]
[EventDate "2024.05.30"]
[EventType "team-tourn"]
[EventCountry "GER"]
[SourceTitle "playchess.com"]
[Source "ChessBase"]
[SourceQuality "1"]
[TimeControl "40/5400+30:1800+30"]

1. e4 {[%emt 0:00:20]} c5 {[%emt 0:00:17]} 2. b3 {[%emt 0:00:03]} Nc6 {[%emt 0:00:20]} 3. Bb2 {[%emt 0:00:06]} e6 {[%emt 0:01:17]} 4. Nf3 {[%emt 0:04:16]} Nf6 {[%emt 0:02:19]} 5. d3 {[%emt 0:04:07]} Be7 {[%emt 0:02:19]} 6. g3 {[%emt 0:02:02]} b6 {[%emt 0:04:44]} 7. Bg2 {[%emt 0:04:04]} Bb7 {[%emt 0:00:27]} 8. O-O {[%emt 0:00:07]} O-O {[%emt 0:00:34]} 9. Nbd2 {[%emt 0:05:44]} Qc7 {[%emt 0:02:47]} 10. Re1 {[%emt 0:06:19]} d6 {[%emt 0:03:17]} 11. Nf1 {[%emt 0:03:27]} Rac8 {[%emt 0:07:15]} 12. Rc1 {[%emt 0:08:21]} b5 {[%emt 0:02:52]} 13. c4 {[%emt 0:15:23]} Qb6 {[%emt 0:14:51]} 14. Qd2 {[%emt 0:12:17]} e5 {[%emt 0:05:32]} 15. Ne3 {[%emt 0:04:14]} a6 {[%emt 0:08:55]} 16. Nf5 {[%emt 0:04:56]} Ne8 {[%emt 0:05:54]} 17. cxb5 {[%emt 0:05:35]} axb5 {[%emt 0:00:51]} 18. d4 {[%emt 0:01:16]} exd4 {[%emt 0:08:30]} 19. N3xd4 {[%emt 0:01:50]} Bf6 {[%emt 0:01:34]} 20. Nxc6 {[%emt 0:00:52]} Bxb2 {[%emt 0:05:07]} 21. Nce7+ {[%emt 0:00:31]} Kh8 {[%emt 0:00:10]} 22. Qxb2 {[%emt 0:00:07]} Rd8 {[%emt 0:06:39]} 23. Nd5 {[%emt 0:03:26]} Qc6 {[%emt 0:06:54]} 24. Rcd1 {[%emt 0:01:20]} f6 {[%emt 0:00:37]} 25. Rd2 {[%emt 0:02:10]} Nc7 {[%emt 0:01:24]} 26. Nxc7 {[%emt 0:00:25]} Qxc7 {[%emt 0:00:03]} 27. Red1 {[%emt 0:00:32]} Rfe8 {[%emt 0:02:10] 10.68} 28. Nxd6 {[%emt 0:00:42]} 0-1

[Event "DFMMLV 2024"]
[Site "Braunfels"]
[Date "2024.05.30"]
[Round "1.30"]
[White "Rosmait, Emily"]
[Black "Spiel, Marianne"]
[Result "1/2-1/2"]
[ECO "C06"]
[WhiteElo "1896"]
[BlackElo "1890"]
[Annotator "NA RC"]
[PlyCount "77"]
[EventDate "2024.05.30"]
[EventType "team-tourn"]
[EventCountry "GER"]
[SourceTitle "playchess.com"]
[Source "ChessBase"]
[SourceQuality "1"]
[TimeControl "40/5400+30:1800+30"]

1. e4 {[%emt 0:00:03]} e6 {[%emt 0:00:13]} 2. d4 {[%emt 0:00:06]} d5 {[%emt 0:00:05]} 3. Nd2 {[%emt 0:00:04]} Nf6 {[%emt 0:00:08]} 4. e5 {[%emt 0:00:32]} Nfd7 {[%emt 0:00:07]} 5. Bd3 {[%emt 0:01:11]} c5 {[%emt 0:00:25]} 6. c3 {[%emt 0:03:30]} Nc6 {[%emt 0:03:04]} 7. Ne2 {[%emt 0:00:45]} cxd4 {[%emt 0:00:26]} 8. cxd4 {[%emt 0:00:28]} f6 {[%emt 0:00:46]} 9. exf6 {[%emt 0:02:29]} Nxf6 {[%emt 0:00:25]} 10. O-O {[%emt 0:00:32]} Bd6 {[%emt 0:00:26]} 11. Nf3 {[%emt 0:05:13]} O-O {[%emt 0:02:26]} 12. h3 {[%emt 0:01:43]} Bd7 {[%emt 0:03:54]} 13. Be3 {[%emt 0:01:15]} Rc8 {[%emt 0:09:35]} 14. Rc1 {[%emt 0:05:02]} Be8 {[%emt 0:03:54]} 15. Ng5 {[%emt 0:14:42]} Qd7 {[%emt 0:11:39]} 16. Bb1 {[%emt 0:22:52]} Bh5 {[%emt 0:13:04]} 17. g4 {[%emt 0:03:33]} Bf7 {[%emt 0:00:44]} 18. Bf4 {[%emt 0:05:20]} Bxf4 {[%emt 0:20:02]} 19. Nxf4 {[%emt 0:00:45]} g6 {[%emt 0:03:47]} 20. Re1 {[%emt 0:03:52]} Rce8 {[%emt 0:01:46]} 21. Nd3 {[%emt 0:06:00]} Qe7 {[%emt 0:08:03]} 22. Ne5 {[%emt 0:08:38]} Nxe5 {[%emt 0:00:40]} 23. dxe5 {[%emt 0:02:28]} Nd7 {[%emt 0:00:02]} 24. Qd2 {[%emt 0:01:13]} Rc8 {[%emt 0:01:08]} 25. h4 {[%emt 0:06:36]} Kg7 {[%emt 0:05:46]} 26. h5 {[%emt 0:00:24]} gxh5 {[%emt 0:00:17]} 27. Nxh7 {[%emt 0:01:31]} Rxc1 {[%emt 0:06:41]} 28. Qxc1 {[%emt 0:00:10]} Rh8 {[%emt 0:00:09]} 29. Nf6 {[%emt 0:02:04]} Nxe5 {[%emt 0:01:35]} 30. Rxe5 {[%emt 0:01:28]} Qxf6 {[%emt 0:00:06]} 31. Rg5+ {[%emt 0:00:38]} Kf8 {[%emt 0:00:01]} 32. Qc8+ {[%emt 0:00:39]} Be8 {[%emt 0:00:28]} 33. Qc5+ {[%emt 0:00:35]} Qe7 {[%emt 0:02:03]} 34. Qe3 {[%emt 0:00:34]} hxg4 {[%emt 0:01:40]} 35. Qf4+ {[%emt 0:00:25]} Qf7 {[%emt 0:00:01]} 36. Qd6+ {[%emt 0:00:18]} Qe7 {[%emt 0:00:02]} 37. Qf4+ {[%emt 0:00:25]} Qf7 {[%emt 0:01:21]} 38. Qd6+ {[%emt 0:00:24]} Qe7 {[%emt 0:00:03]} 39. Qf4+ {[%emt 0:00:15]} 1/2-1/2

[Event "DFMMLV 2024"]
[Site "Braunfels"]
[Date "2024.05.30"]
[Round "1.31"]
[White "Neumeier, Valentina"]
[Black "Freter, Anke"]
[Result "1/2-1/2"]
[ECO "B26"]
[WhiteElo "1802"]
[BlackElo "1918"]
[Annotator "NA RC"]
[PlyCount "94"]
[EventDate "2024.05.30"]
[EventType "team-tourn"]
[EventCountry "GER"]
[SourceTitle "playchess.com"]
[Source "ChessBase"]
[SourceQuality "1"]
[TimeControl "40/5400+30:1800+30"]

1. e4 {[%emt 0:00:02]} c5 {[%emt 0:00:07]} 2. Nc3 {[%emt 0:00:05]} Nc6 {[%emt 0:00:08]} 3. g3 {[%emt 0:00:05]} g6 {[%emt 0:00:24]} 4. Bg2 {[%emt 0:00:07]} Bg7 {[%emt 0:00:05]} 5. d3 {[%emt 0:00:08]} d6 {[%emt 0:01:03]} 6. Nge2 {[%emt 0:00:55]} e6 {[%emt 0:00:56]} 7. Be3 {[%emt 0:01:47]} Nd4 {[%emt 0:02:02]} 8. Qd2 {[%emt 0:03:19]} Ne7 {[%emt 0:03:14]} 9. Nd1 {[%emt 0:06:24]} Nec6 {[%emt 0:10:12]} 10. c3 {[%emt 0:03:33]} Nxe2 {[%emt 0:00:38]} 11. Qxe2 {[%emt 0:00:37]} Rb8 {[%emt 0:05:19]} 12. a4 {[%emt 0:03:42]} a6 {[%emt 0:02:29]} 13. O-O {[%emt 0:05:20]} h5 {[%emt 0:02:54]} 14. h4 {[%emt 0:03:23]} O-O {[%emt 0:06:01]} 15. Qd2 {[%emt 0:06:12]} Ne5 {[%emt 0:01:30]} 16. f3 {[%emt 0:12:22]} b5 {[%emt 0:02:35]} 17. axb5 {[%emt 0:01:52]} axb5 {[%emt 0:01:32]} 18. Nf2 {[%emt 0:03:25]} b4 {[%emt 0:02:30]} 19. f4 {[%emt 0:04:42]} Nc6 {[%emt 0:01:58]} 20. e5 {[%emt 0:02:04]} Na5 {[%emt 0:01:53]} 21. Qc2 {[%emt 0:06:06]} Bb7 {[%emt 0:04:48]} 22. exd6 {[%emt 0:04:34]} Bxg2 {[%emt 0:01:03]} 23. Kxg2 {[%emt 0:00:11]} bxc3 {[%emt 0:01:29]} 24. bxc3 {[%emt 0:02:51]} Nb3 {[%emt 0:02:18]} 25. Rab1 {[%emt 0:02:46]} Qxd6 {[%emt 0:06:00]} 26. Ne4 {[%emt 0:02:06]} Qc6 {[%emt 0:00:35]} 27. Kh2 {[%emt 0:02:27]} c4 {[%emt 0:02:18]} 28. d4 {[%emt 0:05:47]} Rb7 {[%emt 0:06:46]} 29. Nd2 {[%emt 0:03:37]} Rfb8 {[%emt 0:02:39]} 30. Nxb3 {[%emt 0:04:42]} cxb3 {[%emt 0:03:23]} 31. Qd3 {[%emt 0:02:35]} Ra8 {[%emt 0:01:09]} 32. Rf2 {[%emt 0:01:25]} Ra2 {[%emt 0:01:26]} 33. Rfb2 {[%emt 0:01:25]} Rc7 {[%emt 0:04:32]} 34. Bd2 {[%emt 0:01:08]} Rb7 {[%emt 0:03:41]} 35. Rxb3 {[%emt 0:02:26]} Rxb3 {[%emt 0:00:54]} 36. Rxb3 {[%emt 0:00:11]} Qa4 {[%emt 0:02:34]} 37. Rb1 {[%emt 0:01:37]} Bf8 {[%emt 0:02:15]} 38. Kh3 {[%emt 0:01:18]} Kg7 {[%emt 0:01:25]} 39. Be3 {[%emt 0:01:30]} Rc2 {[%emt 0:01:45]} 40. Rc1 {[%emt 0:01:03]} Rb2 {[%emt 0:01:23]} 41. Rd1 {[%emt 0:03:59]} Qc6 {[%emt 0:01:24]} 42. d5 {[%emt 0:02:26]} exd5 {[%emt 0:01:50]} 43. Qxd5 {[%emt 0:01:08]} Qc8+ {[%emt 0:03:38]} 44. Qd7 {[%emt 0:00:07]} Qa8 {[%emt 0:01:18]} 45. Qd5 {[%emt 0:07:11]} Qc8+ {[%emt 0:00:41]} 46. Qd7 {[%emt 0:01:46]} Qa8 {[%emt 0:01:07]} 47. Qd5 {[%emt 0:03:52]} Qc8+ {[%emt 0:34:09]} 1/2-1/2

[Event "DFMMLV 2024"]
[Site "Braunfels"]
[Date "2024.05.30"]
[Round "1.32"]
[White "Leib, Britta"]
[Black "Albayrak, Aylin"]
[Result "1-0"]
[ECO "B47"]
[WhiteElo "1920"]
[BlackElo "1752"]
[Annotator "NA RC"]
[PlyCount "77"]
[EventDate "2024.05.30"]
[EventType "team-tourn"]
[EventCountry "GER"]
[SourceTitle "playchess.com"]
[Source "ChessBase"]
[SourceQuality "1"]
[TimeControl "40/5400+30:1800+30"]

1. e4 {[%emt 0:00:04]} c5 {[%emt 0:00:03]} 2. Nf3 {[%emt 0:01:32]} Nc6 {[%emt 0:00:06]} 3. d4 {[%emt 0:02:06]} cxd4 {[%emt 0:00:37]} 4. Nxd4 {[%emt 0:00:03]} Nf6 {[%emt 0:00:08]} 5. Nc3 {[%emt 0:00:21]} Qc7 {[%emt 0:00:23]} 6. Be2 {[%emt 0:00:53]} e6 {[%emt 0:00:47]} 7. O-O {[%emt 0:03:12]} d5 {[%emt 0:00:43]} 8. exd5 {[%emt 0:03:08]} Nxd5 {[%emt 0:01:02]} 9. Nxd5 {[%emt 0:00:46]} exd5 {[%emt 0:00:08]} 10. Nb5 {[%emt 0:01:03]} Qe5 {[%emt 0:02:44]} 11. Qxd5 {[%emt 0:06:36]} Qb8 {[%emt 0:05:48]} 12. Qe4+ {[%emt 0:05:42]} Be6 {[%emt 0:06:39]} 13. Bf4 {[%emt 0:00:38]} Qc8 {[%emt 0:03:43]} 14. Nc7+ {[%emt 0:00:35]} Ke7 {[%emt 0:00:32]} 15. Nxa8 {[%emt 0:08:04]} Qxa8 {[%emt 0:00:07]} 16. Bc4 {[%emt 0:02:03]} Qc8 {[%emt 0:02:47]} 17. Rfe1 {[%emt 0:01:24]} Nd8 {[%emt 0:01:43]} 18. Rad1 {[%emt 0:05:34]} g6 {[%emt 0:06:25]} 19. Qd4 {[%emt 0:20:53]} f6 {[%emt 0:13:52]} 20. Bxe6 {[%emt 0:11:55]} Nxe6 {[%emt 0:00:51]} 21. Qxa7 {[%emt 0:00:38]} Kf7 {[%emt 0:15:48]} 22. Bd6 {[%emt 0:05:24]} Bh6 {[%emt 0:08:55]} 23. Qb6 {[%emt 0:01:55]} Rd8 {[%emt 0:05:01]} 24. g3 {[%emt 0:06:44]} f5 {[%emt 0:09:13]} 25. Rxe6 {[%emt 0:07:25]} Kxe6 {[%emt 0:09:47]} 26. Bc7+ {[%emt 0:00:15]} Kf7 {[%emt 0:01:13]} 27. Rxd8 {[%emt 0:00:53]} Qe6 {[%emt 0:00:18]} 28. Qb3 {[%emt 0:00:30]} Qxb3 {[%emt 0:01:59]} 29. axb3 {[%emt 0:00:07]} Bc1 {[%emt 0:00:09]} 30. Be5 {[%emt 0:00:44]} Ke6 {[%emt 0:00:26]} 31. f4 {[%emt 0:00:21]} g5 {[%emt 0:00:17]} 32. Rh8 {[%emt 0:00:39]} Kd5 {[%emt 0:00:44]} 33. Rxh7 {[%emt 0:00:35]} b5 {[%emt 0:00:11]} 34. Kf2 {[%emt 0:00:44]} Ke4 {[%emt 0:00:18]} 35. Re7 {[%emt 0:00:54]} Be3+ {[%emt 0:01:44]} 36. Ke2 {[%emt 0:00:50]} Bc1 {[%emt 0:00:35]} 37. fxg5 {[%emt 0:00:19]} Kd5 {[%emt 0:00:26]} 38. g6 {[%emt 0:00:35]} Bg5 {[%emt 0:00:19]} 39. Re8 {[%emt 0:00:28]} 1-0

[Event "DFMMLV 2024"]
[Site "Braunfels"]
[Date "2024.05.30"]
[Round "1.34"]
[White "Skibbe, Diana"]
[Black "Peglau, Dora"]
[Result "1/2-1/2"]
[ECO "B41"]
[WhiteElo "1942"]
[BlackElo "2002"]
[Annotator "NA RC"]
[PlyCount "148"]
[EventDate "2024.05.30"]
[EventType "team-tourn"]
[EventCountry "GER"]
[SourceTitle "playchess.com"]
[Source "ChessBase"]
[SourceQuality "1"]
[TimeControl "40/5400+30:1800+30"]

1. e4 {[%emt 0:00:09]} c5 {[%emt 0:00:22]} 2. Nf3 {[%emt 0:00:09]} e6 {[%emt 0:00:15]} 3. d4 {[%emt 0:00:22]} cxd4 {[%emt 0:00:05]} 4. Nxd4 {[%emt 0:00:04]} a6 {[%emt 0:00:05]} 5. Be2 {[%emt 0:01:00]} Nf6 {[%emt 0:00:48]} 6. Nc3 {[%emt 0:00:06]} Bb4 {[%emt 0:01:46]} 7. e5 {[%emt 0:00:30]} Ne4 {[%emt 0:05:08]} 8. Qd3 {[%emt 0:02:05]} Qa5 {[%emt 0:03:54]} 9. O-O {[%emt 0:05:54]} Nxc3 {[%emt 0:04:19]} 10. bxc3 {[%emt 0:00:21]} Bxc3 {[%emt 0:03:27]} 11. Nb3 {[%emt 0:02:57]} Qc7 {[%emt 0:04:44]} 12. Ba3 {[%emt 0:03:21]} Bxe5 {[%emt 0:06:48]} 13. f4 {[%emt 0:01:18]} Bxa1 {[%emt 0:05:45]} 14. Rxa1 {[%emt 0:00:11]} d5 {[%emt 0:06:10]} 15. Qd4 {[%emt 0:02:11]} Rg8 {[%emt 0:10:10]} 16. Bd3 {[%emt 0:08:46]} Nc6 {[%emt 0:03:14]} 17. Qc3 {[%emt 0:05:30]} Qxf4 {[%emt 0:09:21]} 18. Rf1 {[%emt 0:07:33]} Qe5 {[%emt 0:01:50]} 19. Qc5 {[%emt 0:02:48]} h5 {[%emt 0:09:09]} 20. Qf2 {[%emt 0:04:10]} Qc7 {[%emt 0:02:49]} 21. Bd6 {[%emt 0:00:39]} Qxd6 {[%emt 0:02:25]} 22. Qxf7+ {[%emt 0:00:06]} Kd8 {[%emt 0:00:09]} 23. Qxg8+ {[%emt 0:00:32]} Kc7 {[%emt 0:00:14]} 24. Rf7+ {[%emt 0:05:28]} Kb6 {[%emt 0:00:34]} 25. Qxg7 {[%emt 0:04:43]} Ne5 {[%emt 0:03:04]} 26. Rf8 {[%emt 0:03:22]} Ka7 {[%emt 0:03:22]} 27. Qh8 {[%emt 0:07:32]} Qb6+ {[%emt 0:04:02]} 28. Kh1 {[%emt 0:00:55]} Ng4 {[%emt 0:02:38]} 29. h3 {[%emt 0:03:50]} Nf2+ {[%emt 0:00:48]} 30. Kh2 {[%emt 0:00:04]} Qc7+ {[%emt 0:01:41]} 31. Kg1 {[%emt 0:00:17]} Nxd3 {[%emt 0:00:53]} 32. cxd3 {[%emt 0:00:09]} Qc2 {[%emt 0:02:21]} 33. Qd4+ {[%emt 0:00:33]} b6 {[%emt 0:00:34]} 34. Rf2 {[%emt 0:05:34]} Qc7 {[%emt 0:01:01]} 35. Qh4 {[%emt 0:01:43]} Qh7 {[%emt 0:01:22]} 36. d4 {[%emt 0:00:33]} Bb7 {[%emt 0:00:49]} 37. Qf6 {[%emt 0:03:10]} Qe4 {[%emt 0:01:03]} 38. Kh2 {[%emt 0:05:56]} Rc8 {[%emt 0:00:18]} 39. Nd2 {[%emt 0:01:15]} Qe1 {[%emt 0:01:08]} 40. Nb3 {[%emt 0:00:29]} a5 {[%emt 0:00:36]} 41. Rf1 {[%emt 0:30:40]} Qe4 {[%emt 0:31:14]} 42. Rf4 {[%emt 0:01:50]} Qb1 {[%emt 0:00:00]} 43. Qxe6 {[%emt 0:00:00]} Qxa2 {[%emt 0:00:00]} 44. Rf7 {[%emt 0:00:00]} Rb8 {[%emt 0:00:00]} 45. Nc1 {[%emt 0:00:00]} Qc4 {[%emt 0:00:00]} 46. Ne2 {[%emt 0:00:00]} a4 {[%emt 0:00:00]} 47. Qe5 {[%emt 0:00:00]} a3 {[%emt 0:00:00]} 48. Rc7 {[%emt 0:00:00]} Qa4 {[%emt 0:00:00]} 49. Nc3 {[%emt 0:00:00]} Qb3 {[%emt 0:00:00]} 50. Qe2 {[%emt 0:00:00]} Rc8 {[%emt 0:00:00]} 51. Nb5+ {[%emt 0:00:00]} Ka8 {[%emt 0:00:00]} 52. Rxc8+ {[%emt 0:00:00]} Bxc8 {[%emt 0:00:00]} 53. Qe8 {[%emt 0:00:00]} Qc2 {[%emt 0:01:29]} 54. Qe7 {[%emt 0:00:00]} Qa4 {[%emt 0:01:36]} 55. Qe8 {[%emt 0:00:00]} Qc2 {[%emt 0:01:06]} 56. Nxa3 {[%emt 0:00:00]} Qc7+ {[%emt 0:00:15]} 57. Qe5 {[%emt 0:00:00]} Qxe5+ {[%emt 0:01:51]} 58. dxe5 {[%emt 0:00:00]} Kb7 {[%emt 0:00:40]} 59. Kg3 {[%emt 0:00:00]} Bd7 {[%emt 0:00:59]} 60. Kf4 {[%emt 0:00:00]} b5 {[%emt 0:00:34]} 61. Nc2 {[%emt 0:00:00]} Kc6 {[%emt 0:00:35]} 62. Nd4+ {[%emt 0:00:00]} Kc5 {[%emt 0:00:03]} 63. e6 {[%emt 0:00:00]} Be8 {[%emt 0:00:14]} 64. Ke5 {[%emt 0:00:08]} b4 {[%emt 0:02:06]} 65. g4 {[%emt 0:03:15]} hxg4 {[%emt 0:00:01]} 66. hxg4 {[%emt 0:00:01]} Kc4 {[%emt 0:00:13]} 67. g5 {[%emt 0:00:38]} b3 {[%emt 0:00:40]} 68. Nxb3 {[%emt 0:00:09]} Kxb3 {[%emt 0:00:01]} 69. Kxd5 {[%emt 0:00:01]} Kc3 {[%emt 0:01:09]} 70. Ke5 {[%emt 0:00:38]} Kc4 {[%emt 0:00:34]} 71. Kd6 {[%emt 0:02:13]} Kd4 {[%emt 0:00:28]} 72. Ke7 {[%emt 0:00:06]} Bh5 {[%emt 0:00:28]} 73. Kf6 {[%emt 0:00:03]} Kd5 {[%emt 0:00:18]} 74. g6 {[%emt 0:00:36]} Bxg6 {[%emt 0:00:06]} 1/2-1/2